bitfinex/quotes_ETHUSD_20240731
["timestamp","ask_amount","ask_price","bid_price","bid_amount"]
[1722450684767,3.02642,3304.3,3303.7,35.0]
[1722450684991,3.02642,3304.3,3303.7,3.02683]
[1722450685469,3.02622,3304.5,3303.9,3.02669]
[1722450685673,3.02602,3304.7,3304.0,3.02661]
[1722450686343,3.02602,3304.7,3304.1,3.02653]
[1722450686544,3.02625,3304.5,3304.0,0.06052617]
[1722450686746,3.02634,3304.4,3304.0,0.06052617]
[1722450687386,3.02609,3304.6,3304.0,3.08715617]
[1722450687947,0.605186,3304.7,3304.1,3.02653]
[1722450688143,3.02601,3304.7,3304.0,3.02663]
[1722450688391,3.02601,3304.7,3304.1,3.08703016]
[1722450688558,3.02601,3304.7,3304.0,3.02663]
[1722450688761,3.02581,3304.9,3304.1,0.06052093]
[1722450688978,3.02599,3304.7,3304.1,0.06052093]
[1722450689306,3.02624,3304.5,3303.7,3.0269]
[1722450689443,3.02623,3304.5,3303.7,3.02684]
[1722450689651,3.02634,3304.4,3303.8,6.05349]
[1722450689993,3.02603,3304.7,3303.8,6.05349]
[1722450689994,3.02603,3304.7,3303.8,3.02674]
[1722450690146,3.02622,3304.5,3303.9,3.02666]
[1722450690345,3.026,3304.7,3304.1,3.02653]
[1722450690599,3.026,3304.7,3304.2,0.06052115]
[1722450690913,3.02614,3304.6,3303.9,0.605338]
[1722450691126,3.02614,3304.6,3304.0,3.08712147]
[1722450691462,3.02614,3304.6,3304.0,0.06052147]
[1722450691463,3.02654,3304.1,3304.0,0.06052147]
[1722450691719,3.02654,3304.1,3303.6,0.57036069]
[1722450691720,3.02586,3304.9,3303.7,3.02684]
[1722450691875,3.02586,3304.9,3303.6,0.57036069]
[1722450691876,3.02655,3304.1,3303.6,3.59735069]
[1722450692077,6.05287,3304.3,3303.7,3.02689]
[1722450692297,1.049586,3304.8,3303.7,3.02689]
[1722450692298,3.02622,3304.5,3303.9,3.0267]
[1722450692682,3.02622,3304.5,3303.9,3.02665]
[1722450692993,3.02604,3304.7,3304.0,3.0871556]
[1722450693202,3.02585,3304.9,3304.2,3.02642]
[1722450693410,3.02598,3304.8,3304.3,0.06051952]
[1722450693567,3.02585,3304.9,3304.3,3.08686952]
[1722450693962,3.02582,3304.9,3304.4,3.02625]
[1722450694420,7.47,3305.0,3304.5,0.06051592]
[1722450694720,7.47,3305.0,3304.7,3.02598]
[1722450695034,7.47,3305.0,3304.7,38.02598]
[1722450695231,7.47,3305.0,3304.7,35.0]
[1722450695370,7.47,3305.0,3304.7,0.67234402]
[1722450695569,7.47,3305.0,3304.5,0.2]
[1722450695822,3.02582,3304.9,3304.5,0.2]
[1722450696008,7.47,3305.0,3304.5,3.22617]
[1722450696622,3.02581,3304.9,3304.5,0.2]
[1722450696769,7.47,3305.0,3304.5,3.22616]
[1722450696974,0.1457447,3305.1,3304.6,3.02602]
[1722450697175,0.1457447,3305.1,3304.9,5.3238]
[1722450697494,0.1457447,3305.1,3304.9,2.298]
[1722450698489,0.1457447,3305.1,3304.9,2.35850841]
[1722450699108,0.1457447,3305.1,3304.9,5.38429841]
[1722450699845,0.1457447,3305.1,3304.9,2.35850841]
[1722450700136,0.1457447,3305.1,3305.0,3.02571]
[1722450700335,0.1457447,3305.1,3305.0,3.86671484]
[1722450700541,0.1457447,3305.1,3305.0,6.95293117]
[1722450700701,0.1457447,3305.1,3305.0,3.86671484]
[1722450701020,0.1457447,3305.1,3305.0,6.95292877]
[1722450701225,0.1457447,3305.1,3305.0,6.89242484]
[1722450702312,0.1457447,3305.1,3305.0,9.89242484]
[1722450702903,0.1457447,3305.1,3305.0,44.89242484]
[1722450706315,0.1457447,3305.1,3304.5,3.0786]
[1722450707125,0.1457447,3305.1,3305.0,3.02571]
[1722450707318,0.1457447,3305.1,3305.0,3.08621223]
[1722450707949,0.1457447,3305.1,3305.0,3.02571]
[1722450709017,0.1457447,3305.1,3305.0,6.05142]
[1722450709218,0.1457447,3305.1,3305.0,6.72311241]
[1722450709748,0.1457447,3305.1,3305.0,9.72311241]
[1722450710047,0.1457447,3305.1,3305.0,12.08051241]
[1722450710421,0.1457447,3305.1,3305.0,8.99430222]
[1722450710614,0.1457447,3305.1,3305.0,12.02001222]
[1722450710818,0.1457447,3305.1,3305.0,8.99430222]
[1722450711329,0.1457447,3305.1,3305.0,12.02001222]
[1722450711530,0.1457447,3305.1,3305.0,12.57001222]
[1722450712428,0.1457447,3305.1,3305.0,15.59572222]
[1722450712752,0.1457447,3305.1,3305.0,50.59572222]
[1722450713231,2.2921,3306.7,3306.1,3.02462]
[1722450713232,5.31631,3306.7,3306.1,3.02462]
[1722450713425,5.31631,3306.7,3305.0,39.16119222]
[1722450713426,3.02307,3307.9,3306.2,0.0604826]
[1722450713431,2.4585,3307.1,3306.2,0.0604826]
[1722450713625,2.4585,3307.1,3305.9,3.02485]
[1722450713626,3.02432,3306.6,3305.9,3.02485]
[1722450713823,3.02406,3306.9,3306.2,3.02456]
[1722450714023,3.02406,3306.9,3306.0,0.06048534]
[1722450714024,3.02424,3306.7,3306.0,3.02479]
[1722450714280,3.02403,3306.9,3306.3,3.02446]
[1722450714421,3.02403,3306.9,3306.4,0.06047935]
[1722450714617,5.4823,3307.1,3306.4,0.06047935]
[1722450714923,3.02365,3307.3,3306.6,3.02421]
[1722450715185,3.02365,3307.3,3306.7,3.08462478]
[1722450715348,3.02368,3307.3,3306.8,3.0845322]
[1722450715726,3.02352,3307.4,3306.8,3.0844722]
[1722450716255,3.02338,3307.6,3306.8,3.0844722]
[1722450716456,3.0233,3307.7,3307.0,3.02381]
[1722450716682,3.0233,3307.7,3307.1,3.08423461]
[1722450716824,3.0233,3307.7,3307.2,3.0237]
[1722450717023,3.0233,3307.7,3306.9,3.33238722]
[1722450717024,3.0233,3307.7,3307.3,0.06046473]
[1722450717219,3.0233,3307.7,3306.9,3.33236722]
[1722450717531,3.0233,3307.7,3307.0,0.06046473]
[1722450717871,3.0231,3307.9,3307.1,3.02373]
[1722450718021,3.02325,3307.7,3307.1,3.02373]
[1722450718219,3.0231,3307.9,3307.2,3.0237]
[1722450718513,3.0231,3307.9,3307.3,0.06046053]
[1722450718647,3.02315,3307.8,3307.2,3.02363]
[1722450718844,3.0231,3307.9,3307.3,0.06046145]
[1722450719043,3.0233,3307.7,3307.0,0.3392832]
[1722450719256,3.0231,3307.9,3307.3,3.02361]
[1722450719555,2.429,3308.0,3307.4,3.02346]
[1722450719740,2.429,3308.0,3307.4,0.06046056]
[1722450719930,3.02298,3308.0,3307.4,3.08396056]
[1722450720260,3.02288,3308.1,3307.5,3.02341]
[1722450720560,2.4070447,3308.4,3307.6,38.08372973]
[1722450720561,3.02279,3308.2,3307.6,38.08372973]
[1722450720763,3.02292,3308.1,3307.6,35.06045973]
[1722450720926,3.02279,3308.2,3307.6,35.0]
[1722450720927,3.023,3308.0,3307.6,35.0]
[1722450721666,2.4070447,3308.4,3307.6,38.02327]
[1722450721667,3.02283,3308.2,3307.6,38.02327]
[1722450721959,5.4296647,3308.4,3307.7,3.08364491]
[1722450721960,3.1683647,3308.4,3307.7,3.08364491]
[1722450722157,3.1683647,3308.4,3307.8,0.06045199]
[1722450722359,3.02291,3308.1,3307.7,2.98520829]
[1722450722657,3.02294,3308.1,3307.7,2.98520829]
[1722450722832,3.02294,3308.1,3307.6,35.0]
[1722450723545,3.02297,3308.0,3307.6,35.0]
[1722450723965,0.1457447,3308.4,3306.9,5.3736]
[1722450724259,0.1457447,3308.4,3306.5,3.0243]
[1722450724260,2.4573,3308.1,3306.8,3.02406]
[1722450724423,3.02352,3307.4,3306.8,3.02406]
[1722450724628,3.02318,3307.8,3306.8,3.628848]
[1722450724865,3.02334,3307.6,3306.8,3.02399]
[1722450725071,3.02325,3307.7,3307.1,3.02377]
[1722450725225,2.4573,3308.1,3306.5,2.3497]
[1722450725421,2.4573,3308.1,3307.5,3.02337]
[1722450725422,3.02295,3308.1,3307.5,3.02337]
[1722450725647,3.0227,3308.3,3307.7,3.02322]
[1722450725858,3.0227,3308.3,3307.6,0.0604568]
[1722450725859,3.1684047,3308.4,3307.8,0.0604542]
[1722450726065,0.1457447,3308.4,3307.9,3.02306]
[1722450726362,0.1457447,3308.4,3308.2,3.02274]
[1722450726561,0.1457447,3308.4,3308.3,0.06044512]
[1722450727059,0.1457447,3308.4,3308.3,3.08314512]
[1722450727259,0.1457447,3308.4,3308.3,0.06044512]
[1722450727463,0.1457447,3308.4,3308.3,3.0227]
[1722450727663,0.1457447,3308.4,3308.3,3.69373035]
[1722450727963,0.1457447,3308.4,3308.3,6.71643035]
[1722450728464,0.1457447,3308.4,3308.3,6.65598547]
[1722450728847,0.1457447,3308.4,3308.3,3.63328547]
[1722450729431,0.1457447,3308.4,3308.3,6.65598547]
[1722450729778,0.1457447,3308.4,3308.3,9.71642673]
[1722450730169,0.1457447,3308.4,3308.3,12.73912673]
[1722450730343,0.1457447,3308.4,3308.3,13.28912673]
[1722450730684,0.1457447,3308.4,3308.3,19.01512673]
[1722450730895,0.1457447,3308.4,3308.3,18.71122673]
[1722450731607,0.1457447,3308.4,3308.3,50.62808547]
[1722450731787,0.1457447,3308.4,3308.3,53.65078547]
[1722450731942,0.1457447,3308.4,3308.3,53.95468547]
[1722450732147,4.7e-06,3308.4,3308.3,53.95468547]
[1722450732763,3.02091,3310.3,3308.4,0.06042121]
[1722450732969,3.02097,3310.2,3309.5,3.02155]
[1722450733170,3.02093,3310.3,3309.6,3.0819286]
[1722450733569,3.02096,3310.2,3309.7,35.0]
[1722450733883,3.02069,3310.5,3309.9,3.02123]
[1722450734084,3.02062,3310.6,3310.0,3.08149424]
[1722450734404,2.4935,3310.9,3310.1,0.06041434]
[1722450734708,2.4935,3310.9,3310.2,3.02095]
[1722450734709,3.2698,3310.8,3310.2,3.02095]
[1722450734857,3.02027,3311.0,3310.1,3.02104]
[1722450735054,2.317,3311.2,3309.5,3.02154]
[1722450735055,5.33708,3311.2,3310.2,0.06040658]
[1722450735414,3.02007,3311.2,3310.6,3.02059]
[1722450735612,3.02014,3311.1,3310.7,0.06040041]
[1722450736092,2.462,3311.6,3310.7,0.06040041]
[1722450736093,3.01996,3311.3,3310.7,0.06040041]
[1722450736302,3.02005,3311.2,3310.7,3.02048]
[1722450736588,3.02005,3311.2,3310.5,3.02062]
[1722450736589,3.01987,3311.4,3310.5,3.02062]
[1722450736800,3.01987,3311.4,3310.5,2.98520829]
[1722450737007,3.02006,3311.2,3310.6,3.02053]
[1722450737307,2.462,3311.6,3310.3,38.02083]
[1722450737308,3.02023,3311.0,3310.3,38.02083]
[1722450737465,5.48173,3311.6,3310.3,38.0208]
[1722450737795,3.02042,3310.8,3310.3,35.0]
[1722450738095,3.0205,3310.7,3310.3,35.0]
[1722450738259,3.02024,3311.0,3310.4,3.02077]
[1722450738456,0.56274747,3311.5,3310.3,35.0]
[1722450738457,3.02052,3310.7,3310.3,35.0]
[1722450738754,0.56274747,3311.5,3310.3,35.0]
[1722450738965,3.02053,3310.7,3310.3,35.0]
[1722450739188,3.02042,3310.8,3310.3,35.0]
[1722450739555,3.02024,3311.0,3310.3,38.02085]
[1722450739761,3.02024,3311.0,3310.4,3.02078]
[1722450740260,3.02024,3311.0,3310.3,38.0208]
[1722450740459,3.02034,3310.9,3310.3,41.00600829]
[1722450740662,3.02016,3311.1,3310.3,38.0208]
[1722450740893,3.02023,3311.0,3310.3,38.0208]
[1722450741105,3.02023,3311.0,3310.2,3.0209]
[1722450741311,3.0206,3310.6,3309.8,3.0]
[1722450741464,0.30206,3310.5,3309.9,35.55]
[1722450741834,3.02096,3310.3,3309.6,3.02145]
[1722450742133,3.02096,3310.3,3309.2,2.4812]
[1722450742134,2.2569,3310.8,3310.0,3.02107]
[1722450742312,3.02034,3310.9,3310.3,3.02082]
[1722450742621,3.02036,3310.9,3310.4,3.02078]
[1722450742967,3.02018,3311.1,3310.4,3.02078]
[1722450743169,3.02002,3311.3,3310.7,3.02045]
[1722450743470,3.02002,3311.3,3310.8,0.06039839]
[1722450743718,3.0198,3311.5,3310.8,3.08080839]
[1722450743875,3.02001,3311.3,3310.8,0.06039839]
[1722450744069,3.02001,3311.3,3310.8,3.08080839]
[1722450744282,3.02001,3311.3,3310.9,0.0603984]
[1722450744483,3.0202,3311.1,3310.8,0.33301101]
[1722450744889,3.02001,3311.3,3310.9,0.06040023]
[1722450745497,3.02014,3311.1,3310.9,0.06040023]
[1722450745699,3.623993,3311.3,3310.9,0.06040025]
[1722450746026,5.4964747,3311.7,3310.9,0.06040025]
[1722450746027,2.4768447,3311.7,3310.9,0.06040025]
[1722450746226,2.4768447,3311.7,3311.2,0.2]
[1722450746524,0.1457447,3311.7,3311.4,3.01979]
[1722450746669,0.1457447,3311.7,3311.5,3.08008575]
[1722450746868,0.1457447,3311.7,3311.6,3.01968]
[1722450747067,0.1457447,3311.7,3311.5,0.06038575]
[1722450747303,0.1457447,3311.7,3311.4,3.01978]
[1722450747481,0.1457447,3311.7,3311.5,3.01972]
[1722450747679,0.1457447,3311.7,3311.6,3.08006402]
[1722450748094,0.1457447,3311.7,3311.6,38.08006402]
[1722450748306,0.1457447,3311.7,3311.6,44.02456829]
[1722450748639,0.1457447,3311.7,3311.6,44.57456829]
[1722450748787,0.1457447,3311.7,3311.6,50.59424829]
[1722450750007,0.1457447,3311.7,3311.6,52.86994829]
[1722450751172,0.1457447,3311.7,3311.6,49.85026829]
[1722450751412,0.1457447,3311.7,3311.6,38.55]
[1722450751611,0.1457447,3311.7,3311.2,3.42001]
[1722450751612,0.1457447,3311.7,3311.2,0.4]
[1722450751812,0.1457447,3311.7,3311.3,3.0199]
[1722450751976,0.1457447,3311.7,3311.4,3.01979]
[1722450752307,0.1457447,3311.7,3311.2,0.4]
[1722450752677,0.1457447,3311.7,3311.2,38.41999]
[1722450752877,0.1457447,3311.7,3311.2,41.40519829]
[1722450753080,0.1457447,3311.7,3311.4,3.01979]
[1722450753276,0.1457447,3311.7,3311.5,3.01977]
[1722450753726,0.1457447,3311.7,3311.2,38.38520829]
[1722450753727,0.1457447,3311.7,3311.3,3.01994]
[1722450754028,0.1457447,3311.7,3311.4,3.01986]
[1722450754233,0.1457447,3311.7,3311.5,3.321756]
[1722450754510,0.1457447,3311.7,3311.6,3.01968]
[1722450754684,0.1457447,3311.7,3311.6,6.64974088]
[1722450754935,0.1457447,3311.7,3311.6,12.60904]
[1722450755119,0.1457447,3311.7,3311.6,17.92442]
[1722450755328,0.1457447,3311.7,3311.6,16.32860178]
[1722450756122,0.1457447,3311.7,3311.6,51.32860178]
[1722450756901,4.7e-06,3311.7,3311.6,54.34828178]
[1722450757240,4.7e-06,3311.7,3311.6,51.32860178]
[1722450757585,4.7e-06,3311.7,3311.6,48.30892178]
[1722450757901,4.7e-06,3311.7,3311.6,46.01322178]
[1722450758090,4.7e-06,3311.7,3311.6,42.99354178]
[1722450758281,4.7e-06,3311.7,3311.6,46.01322178]
[1722450758489,4.7e-06,3311.7,3311.6,42.99354178]
[1722450758820,4.7e-06,3311.7,3311.6,43.19354178]
[1722450759322,4.7e-06,3311.7,3311.6,46.21322178]
[1722450759483,4.7e-06,3311.7,3311.6,49.23290178]
[1722450759680,4.7e-06,3311.7,3311.6,46.21322178]
[1722450759886,4.7e-06,3311.7,3311.6,49.23290178]
[1722450760320,4.7e-06,3311.7,3311.6,49.56591279]
[1722450760521,4.7e-06,3311.7,3311.6,52.58559279]
[1722450760829,4.7e-06,3311.7,3311.6,55.06639279]
[1722450761022,4.7e-06,3311.7,3311.6,54.73338178]
[1722450761826,4.7e-06,3311.7,3311.6,59.25306178]
[1722450761997,4.7e-06,3311.7,3311.6,59.55696178]
[1722450762197,4.7e-06,3311.7,3311.6,63.60380648]
[1722450762988,4.7e-06,3311.7,3311.6,60.40280648]
[1722450763183,4.7e-06,3311.7,3311.6,58.49210602]
[1722450763601,4.7e-06,3311.7,3311.6,59.99210602]
[1722450763824,4.7e-06,3311.7,3311.6,58.49210602]
[1722450764121,4.7e-06,3311.7,3311.6,59.99210602]
[1722450764320,5.41651,3314.0,3313.5,3.01787]
[1722450764321,2.399,3314.0,3313.5,3.01787]
[1722450764907,2.399,3314.0,3313.5,3.01789]
[1722450765121,2.399,3314.0,3313.5,38.01789]
[1722450765347,2.399,3314.0,3313.5,35.0]
[1722450765486,3.01761,3313.9,3313.5,35.0]
[1722450766121,2.399,3314.0,3313.5,35.0]
[1722450766328,2.4799,3314.4,3313.8,3.01767]
[1722450766532,2.4799,3314.4,3314.0,3.01742]
[1722450766731,2.4799,3314.4,3314.1,0.06034094]
[1722450766930,2.4799,3314.4,3314.0,3.07781094]
[1722450767235,2.4799,3314.4,3314.0,0.06034094]
[1722450767436,2.49400903,3314.9,3314.2,3.01723]
[1722450767627,2.49400903,3314.9,3313.7,6.01774]
[1722450767628,0.00180903,3314.9,3314.6,3.01689]
[1722450767925,0.00180903,3314.9,3314.5,3.01704]
[1722450768124,0.00180903,3314.9,3314.6,35.0]
[1722450768326,0.00180903,3314.9,3314.6,38.01694]
[1722450768532,0.00180903,3314.9,3314.6,35.0]
[1722450769118,3.01677,3314.8,3314.6,35.0]
[1722450769390,3.01677,3314.8,3314.4,0.33292051]
[1722450769391,8.50668,3314.5,3314.4,0.33292051]
[1722450769729,8.50668,3314.5,3313.5,3.01789]
[1722450769730,3.01746,3314.1,3313.6,35.0]
[1722450769919,2.4726,3314.5,3313.6,35.0]
[1722450769920,3.01759,3313.9,3313.6,35.0]
[1722450770230,3.01758,3314.0,3313.6,37.98520829]
[1722450770530,3.01765,3313.9,3312.9,3.01847]
[1722450770734,3.01765,3313.9,3312.3,2.92054424]
[1722450770735,3.01771,3313.8,3313.1,3.01826]
[1722450770916,3.0176,3313.9,3313.2,3.01822]
[1722450771240,3.0176,3313.9,3312.1,3.01917]
[1722450771241,3.0181,3313.4,3312.0,3.01932]
[1722450771429,5.3594,3313.6,3312.2,3.01906]
[1722450771602,2.3415,3313.6,3312.3,35.0]
[1722450771793,2.3415,3313.6,3313.0,3.01835]
[1722450771989,2.3415,3313.6,3313.3,3.01807]
[1722450772242,3.01768,3313.8,3313.1,3.01825]
[1722450772397,3.01765,3313.9,3313.1,3.320075]
[1722450772717,2.2898,3314.1,3313.3,3.01809]
[1722450772917,2.2898,3314.1,3313.1,0.301825]
[1722450773132,2.2898,3314.1,3313.8,3.01767]
[1722450773332,2.2898,3314.1,3313.9,3.07792627]
[1722450773692,3.01742,3314.1,3313.7,35.0]
[1722450773896,3.01757,3314.0,3313.2,3.56817]
[1722450774135,3.01753,3314.0,3313.3,3.0]
[1722450774346,3.01738,3314.2,3313.5,3.01795]
[1722450774619,3.01737,3314.2,3313.6,3.0]
[1722450774818,3.01723,3314.3,3313.7,3.01771]
[1722450775041,3.0174,3314.2,3313.8,0.601771]
[1722450775240,3.0174,3314.2,3313.6,3.0]
[1722450775241,3.0175,3314.0,3313.6,3.0]
[1722450775559,3.0175,3314.0,3313.1,3.320075]
[1722450775560,3.0175,3314.0,3313.4,3.01803]
[1722450775853,3.0175,3314.0,3313.2,3.0]
[1722450775854,3.01779,3313.7,3313.2,3.0]
[1722450776053,3.01796,3313.5,3313.1,3.301825]
[1722450776245,2.4725,3313.9,3313.2,35.0]
[1722450776447,3.01789,3313.6,3312.8,3.0]
[1722450776648,3.01787,3313.6,3313.0,3.01839]
[1722450776960,2.4725,3313.9,3313.1,38.0]
[1722450777163,3.01775,3313.8,3313.2,3.01816]
[1722450777316,3.01775,3313.8,3313.2,3.0182]
[1722450777515,2.4725,3313.9,3313.5,3.01794]
[1722450777763,5.41422,3314.4,3313.7,3.01769]
[1722450778054,5.41422,3314.4,3313.6,0.301794]
[1722450778055,3.01729,3314.3,3313.6,0.301794]
[1722450778256,3.01729,3314.3,3313.8,3.01768]
[1722450778457,2.397,3314.4,3313.8,3.01768]
[1722450778629,2.397,3314.4,3314.1,3.0174]
[1722450779195,2.397,3314.4,3314.1,3.01739]
[1722450779323,2.41770903,3314.9,3314.0,3.01745]
[1722450779525,3.01701,3314.6,3314.0,3.01745]
[1722450779746,3.01708,3314.5,3314.2,35.0]
[1722450779947,3.01722,3314.3,3314.2,35.0]
[1722450780261,3.01703,3314.6,3313.3,3.0181]
[1722450780417,3.01759,3313.9,3313.1,6.01824]
[1722450780621,2.628203,3314.5,3313.1,3.0]
[1722450780622,3.01769,3313.8,3313.1,3.0]
[1722450780818,3.01773,3313.8,3313.2,35.0]
[1722450781017,3.01757,3314.0,3313.3,3.01811]
[1722450781292,3.01743,3314.1,3313.3,3.01811]
[1722450781561,3.01725,3314.3,3313.5,3.01789]
[1722450781891,3.01771,3313.8,3313.4,35.0]
[1722450782072,2.353,3313.7,3313.4,38.01804]
[1722450782366,2.353,3313.7,3313.4,35.0]
[1722450782536,3.01795,3313.5,3313.4,35.0]
[1722450782738,3.01824,3313.2,3312.7,3.0]
[1722450783064,5.60611,3313.7,3312.6,3.01874]
[1722450783261,3.01801,3313.5,3312.7,38.01866]
[1722450783450,3.01805,3313.4,3312.9,3.01844]
[1722450783626,3.01805,3313.4,3312.8,3.01853]
[1722450783830,3.01786,3313.6,3312.9,3.01847]
[1722450784133,3.01786,3313.6,3312.7,35.0]
[1722450784134,3.01733,3314.2,3313.6,3.01778]
[1722450784449,3.0175,3314.0,3313.7,0.603573]
[1722450784665,2.3413,3314.4,3313.4,0.06034786]
[1722450784837,2.3413,3314.4,3313.9,3.01754]
[1722450785258,2.3413,3314.4,3313.7,3.01773]
[1722450785588,2.3413,3314.4,3313.5,3.01791]
[1722450785589,3.0173,3314.3,3313.8,35.0]
[1722450785782,2.3413,3314.4,3313.8,35.0]
[1722450785783,3.01747,3314.1,3313.8,35.0]
[1722450786385,3.01724,3314.3,3313.8,35.0]
[1722450786603,3.01724,3314.3,3313.9,0.94848852]
[1722450786893,5.35843,3314.4,3313.9,0.94848852]
[1722450787248,3.01744,3314.1,3313.8,35.0]
[1722450787470,3.01748,3314.1,3313.8,35.0]
[1722450787991,3.01756,3314.0,3313.8,35.0]
[1722450788204,6.03518,3313.9,3313.8,35.0]
[1722450788494,3.01759,3313.9,3313.8,35.0]
[1722450788807,3.01794,3313.6,3312.8,3.01851]
[1722450789090,5.49794,3313.6,3312.9,0.301851]
[1722450789288,5.49794,3313.6,3313.0,3.0184]
[1722450789617,3.01818,3313.3,3312.4,3.01887]
[1722450789750,3.01819,3313.3,3312.6,3.01869]
[1722450789953,3.01825,3313.2,3312.6,3.01869]
[1722450790163,3.01852,3312.9,3312.7,35.0]
[1722450790362,3.01859,3312.8,3312.7,35.0]
[1722450790872,3.01836,3313.1,3312.7,35.0]
[1722450790873,3.01847,3313.0,3312.7,35.0]
[1722450791072,2.48,3313.6,3312.7,35.0]
[1722450791398,3.01802,3313.5,3312.8,0.06036731]
[1722450791602,2.48,3313.6,3313.0,3.01841]
[1722450791806,2.48,3313.6,3313.1,0.06035795]
[1722450791978,10.48771,3313.8,3312.9,2.98520829]
[1722450791979,10.48771,3313.8,3313.2,6.03632]
[1722450792177,7.47,3313.8,3313.4,3.01798]
[1722450792374,3.01684,3314.8,3312.9,6.00367829]
[1722450792375,10.487,3314.6,3313.8,3.01766]
[1722450792573,5.2884,3314.5,3313.9,0.0603448]
[1722450792776,5.2884,3314.5,3314.0,3.01749]
[1722450792999,3.01731,3314.2,3314.1,35.0]
[1722450793176,3.01732,3314.2,3313.8,0.2]
[1722450793376,2.2713,3314.5,3313.8,0.2]
[1722450793599,2.2713,3314.5,3314.0,3.01745]
[1722450793775,3.01721,3314.4,3313.9,35.0]
[1722450793974,0.528851,3314.3,3313.8,0.2]
[1722450794190,3.01746,3314.1,3313.8,0.2]
[1722450794678,2.2713,3314.5,3313.8,0.2]
[1722450794679,3.01759,3313.9,3313.8,0.2]
[1722450794964,3.01737,3314.2,3313.8,0.2]
[1722450795340,6.03495,3314.1,3313.8,0.2]
[1722450795619,6.03518,3313.9,3313.8,0.2]
[1722450795781,6.638698,3313.9,3313.8,0.2]
[1722450795979,3.01751,3314.0,3313.8,0.2]
[1722450796204,3.01759,3313.9,3313.8,0.2]
[1722450796713,6.03518,3313.9,3313.8,0.2]
[1722450796926,3.01759,3313.9,3313.8,0.2]
[1722450797067,6.03518,3313.9,3313.8,0.4]
[1722450797266,12.062688,3313.9,3313.8,0.4]
[1722450799269,8.44158,3313.9,3313.8,0.4]
[1722450799469,5.42399,3313.9,3313.8,0.4]
[1722450800474,2.4064,3313.9,3313.8,0.4]
[1722450800709,6.01687,3314.7,3313.8,0.4]
[1722450800710,3.01744,3314.1,3313.8,0.4]
[1722450800875,3.01739,3314.2,3313.8,0.4]
[1722450801077,3.01741,3314.1,3313.8,0.4]
[1722450801272,9.05262,3314.0,3313.9,0.33298178]
[1722450801472,11.47872,3314.0,3313.9,0.33298178]
[1722450801913,17.49622,3314.0,3313.9,0.33298178]
[1722450802119,17.49616,3314.0,3313.9,0.18723708]
[1722450802418,17.4961,3314.0,3313.9,0.18723708]
[1722450802632,19.53510925,3314.0,3313.9,7.08e-06]
[1722450803227,19.53510925,3314.0,3311.6,3.01961]
[1722450803228,3.01778,3313.7,3312.1,3.01915]
[1722450803379,3.01868,3312.7,3311.9,3.01933]
[1722450803582,3.01868,3312.7,3312.2,35.0]
[1722450804329,3.01902,3312.4,3312.2,35.0]
[1722450804635,2.3771,3312.9,3311.2,5.39968]
[1722450804636,3.01864,3312.8,3311.4,10.30982]
[1722450804772,3.01903,3312.4,3311.5,4.050702]
[1722450804976,3.01916,3312.2,3311.6,35.0]
[1722450805481,3.01916,3312.2,3311.6,38.01968]
[1722450805675,3.01903,3312.4,3311.6,38.01968]
[1722450805907,3.01921,3312.2,3311.7,3.0]
[1722450806108,3.01921,3312.2,3311.7,5.98520829]
[1722450806290,3.01921,3312.2,3311.7,3.0]
[1722450806491,6.03843,3312.2,3311.8,35.0]
[1722450806731,3.01923,3312.1,3311.8,35.0]
[1722450806930,3.01941,3311.9,3311.8,35.0]
[1722450807216,6.03882,3311.9,3311.8,35.0]
[1722450807574,3.01941,3311.9,3311.8,35.0]
[1722450808405,2.2671,3312.0,3310.8,10.31037]
[1722450808406,3.01985,3311.5,3310.8,10.31037]
[1722450808718,3.01981,3311.5,3310.8,1.333092]
[1722450808907,3.01993,3311.4,3310.7,3.0205]
[1722450809101,3.01998,3311.3,3310.7,3.0205]
[1722450809627,3.02029,3311.0,3310.4,35.0]
[1722450809994,3.02048,3310.8,3310.4,35.0]
[1722450810323,3.02046,3310.8,3310.4,35.0]
[1722450810521,2.2738,3311.7,3310.4,37.98520829]
[1722450810685,3.01993,3311.4,3310.5,0.06041154]
[1722450810884,3.02011,3311.2,3310.4,37.98520829]
[1722450811186,2.2738,3311.7,3310.4,37.98520829]
[1722450811187,3.02036,3310.9,3310.4,37.98520829]
[1722450811385,2.2738,3311.7,3310.4,35.0]
[1722450811598,6.04138,3310.5,3310.4,35.0]
[1722450811799,3.01978,3311.5,3310.4,35.0]
[1722450812042,4.15314581,3311.7,3310.4,35.0]
[1722450812043,2.2738,3311.7,3310.8,3.02041]
[1722450812185,5.2934,3311.7,3310.8,3.02041]
[1722450812387,3.0198,3311.5,3310.9,0.302041]
[1722450812588,3.01997,3311.3,3310.6,3.02056]
[1722450812887,3.02029,3311.0,3310.4,35.0]
[1722450813330,3.02027,3311.0,3310.4,35.0]
[1722450813659,3.02008,3311.2,3310.4,35.0]
[1722450813826,2.2738,3311.7,3310.4,35.0]
[1722450813981,2.2738,3311.7,3310.4,37.98520829]
[1722450813982,3.02032,3310.9,3310.4,37.98520829]
[1722450814186,3.02042,3310.8,3310.4,35.0]
[1722450814838,3.0199,3311.4,3310.5,3.02065]
[1722450815040,3.01974,3311.6,3310.5,0.0604136]
[1722450815239,2.2738,3311.7,3310.9,3.02024]
[1722450815420,3.01945,3311.9,3311.0,0.36242093]
[1722450815611,2.4077,3312.3,3311.0,0.36242093]
[1722450815612,3.0194,3312.0,3311.4,3.01986]
[1722450815810,3.0194,3312.0,3311.1,35.06039698]
[1722450815811,3.01937,3312.0,3311.3,3.01995]
[1722450816019,5.42678,3312.3,3311.6,3.01967]
[1722450816213,2.4077,3312.3,3311.4,3.0198]